Cogmind - Beta 10.2 @@@ ROGUE MODE // 2021.12.19 @ 20:42:07 Player: zazuza Result: Destroyed by H-77 Assassin with Coil Gun Performance ------------- Evolutions (6) 3000 Regions Visited (9) 1800 Robots Destroyed (3) 15 Value Destroyed (25) 25 Prototype IDs (0) 0 Alien Tech Used (0) 0 Bonus (470) 470 TOTAL SCORE: 5310 Bonus ------- Pacifist 470 Cogmind --------- Core Integrity 0/1150 Matter 285/300 Energy 75/100 System Corruption 3% Temperature Cool (0) Movement Core (50) Location -4/Armory Parts ------- > --- POWER (2) -------- (None) > --- PROPULSION (5) --- Centrium Wheel > --- UTILITY (10) ----- (None) > --- WEAPON (2) ------- (None) > --- INVENTORY (4) ---- Light Deuterium Engine Improved Propulsion Shielding Peak State ------------ > --- POWER ------------ Light Deuterium Engine > --- PROPULSION ------- Hover Unit VTOL Module VTOL Module VTOL Module > --- UTILITY ---------- ECM Suite Improved Light Armor Plating Improved Light Armor Plating Hacking Suite Hacking Suite System Shield > --- WEAPON ----------- Scythe > --- INVENTORY -------- Light Deuterium Engine Small Storage Unit Mining Claw Scythe [Rating: 29] Favorites ----------- Power Light Deuterium Engine Engine Light Deuterium Engine Propulsion VTOL Module Wheel Centrium Wheel Hover Unit Hover Unit Flight Unit VTOL Module Utility Hacking Suite Device ECM Suite Storage Small Storage Unit Processor Seismic Analyzer Hackware Hacking Suite Protection Improved Light Armor Plating Weapon Scythe Slashing Weapon Scythe Build | -11 -10 -10 -9 -8 -7 -6 -5 -4 -4 ------- Run | Scr Mat Min Mat Mat Fac Fac Fac Fac Arm Slots Evolved 12 | . . . 2 2 2 2 2 2 . Power 1 | . . . . . . . 1 . . Propulsion 3 | . . . 1 . 1 . 1 . . Utility 8 | . . . 1 2 1 2 . 2 . Weapon . | . . . . . . . . . . Parts Attached 24 | 1 1 . . 10 5 1 4 . 2 Power 3 | 1 . . . 1 . 1 . . . Engine 3 | 1 . . . 1 . 1 . . . Core . | . . . . . . . . . . Reactor . | . . . . . . . . . . Propulsion 7 | . . . . 3 2 . 1 . 1 Treads . | . . . . . . . . . . Leg . | . . . . . . . . . . Wheel 1 | . . . . . . . . . 1 Hover 1 | . . . . . 1 . . . . Flight 5 | . . . . 3 1 . 1 . . Utility 10 | . . . . 5 3 . 1 . 1 Device 1 | . . . . 1 . . . . . Storage 1 | . . . . 1 . . . . . Processor 1 | . . . . 1 . . . . . Hackware 3 | . . . . 1 2 . . . . Protection 4 | . . . . 1 1 . 1 . 1 Artifact . | . . . . . . . . . . Weapon 4 | . 1 . . 1 . . 2 . . Energy Gun . | . . . . . . . . . . Energy Cannon . | . . . . . . . . . . Ballistic Gun . | . . . . . . . . . . Ballistic Cannon . | . . . . . . . . . . Launcher . | . . . . . . . . . . Special Weapon . | . . . . . . . . . . Impact Weapon . | . . . . . . . . . . Slashing Weapon 4 | . 1 . . 1 . . 2 . . Piercing Weapon . | . . . . . . . . . . Special Melee Weapon . | . . . . . . . . . . Unidentified Prototypes . | . . . . . . . . . . Parts Lost 16 | . 1 . . . 1 3 8 2 1 Power 2 | . 1 . . . . 1 . . . Propulsion 6 | . . . . . 1 2 3 . . Utility 5 | . . . . . . . 3 1 1 Weapon 3 | . . . . . . . 2 1 . Highest Loss Streak 5 | . 1 . . . 1 3 5 1 1 Average Slot Usage (%) 34 | . 11 14 11 61 84 65 28 4 7 Engine 2 | . 7 . . 5 7 6 1 . . Flight 8 | . . . . 27 24 15 4 . . Device 2 | . . . . 2 7 6 2 . . Processor 1 | . . . . 6 4 . . . . Hackware 7 | . . . . 3 13 20 11 1 . Protection 4 | . . . . 3 15 7 1 . 3 Slashing Weapon 5 | . 4 14 11 12 7 6 4 2 . Naked Turns 91 | . 6 . . . . . . 66 19 Heaviest Build 14 | 3 3 2 2 13 14 14 11 2 3 Greatest Support 18 | 3 3 3 3 15 15 15 18 3 3 Greatest Overweight (x) 4 | . . . . . . 4 2 . . Average Overweight (x) . | . . . . . . . . . . Largest Inventory Capacity 6 | 4 4 4 4 6 4 4 4 4 4 Average Capacity 4 | 4 4 4 4 4 4 4 4 4 4 Most Carried 4 | . 1 1 1 4 4 4 4 3 3 Average Carried 2 | . . 1 1 2 3 3 3 3 2 Final Capacity 4 | 4 4 4 4 4 4 4 4 4 4 Final Carried 4 | . 1 1 1 4 4 4 3 3 2 Class Distribution -------------------- 64% | Mutant 35% | Hacker-Mutant Dominant Class ---------------- Mutant | -10/Materials Mutant | -10/Mines Mutant | -9/Materials Mutant | -8/Materials Hacker-Mutant | -7/Factory Hacker-Mutant | -6/Factory Hacker-Mutant | -5/Factory Mutant | -4/Factory Mutant | -4/Armory Resources | -11 -10 -10 -9 -8 -7 -6 -5 -4 -4 ----------- Run | Scr Mat Min Mat Mat Fac Fac Fac Fac Arm Matter Collected 371 | 60 . 38 . 14 59 184 . 16 . Remotely . | . . . . . . . . . . Salvage Created 73 | . . . . 14 59 . . . . Parts 6 | . . . . 1 5 . . . . Haulers Intercepted 1 | . . . . . 1 . . . . Recyclers Shooed 1 | . . . . . . . 1 . . Parts Field Recycled . | . . . . . . . . . . Retrieved Matter . | . . . . . . . . . . Parts Self-Destructed . | . . . . . . . . . . Prevented . | . . . . . . . . . . Kills | -11 -10 -10 -9 -8 -7 -6 -5 -4 -4 ------- Run | Scr Mat Min Mat Mat Fac Fac Fac Fac Arm Combat Hostiles Destroyed . | . . . . . . . . . . Classes Destroyed 3 | . . . . 1 2 . . . . Tunneler 1 | . . . . 1 . . . . . Hauler 1 | . . . . . 1 . . . . Operator 1 | . . . . . 1 . . . . Best Kill Streak 1 | . . . . 1 1 . . . . Combat Bots Only . | . . . . . . . . . . Max Kills in Single Turn 1 | . . . . 1 1 . . . . Gunslinging . | . . . . . . . . . . Exploded . | . . . . . . . . . . Melee . | . . . . . . . . . . Uniques/NPCs Destroyed . | . . . . . . . . . . Combat | -11 -10 -10 -9 -8 -7 -6 -5 -4 -4 -------- Run | Scr Mat Min Mat Mat Fac Fac Fac Fac Arm Damage Taken 3224 | . 170 . 208 151 29 418 820 821 607 Core 2175 | . 119 . 193 41 . 139 517 782 384 Absorbed by Shields 36 | . . . . . . 36 . . . Core Remaining (%) 75 | 100 . 52 51 92 100 83 48 . . Volleys Fired . | . . . . . . . . . . Largest . | . . . . . . . . . . Hottest . | . . . . . . . . . . Shots Fired . | . . . . . . . . . . Gun . | . . . . . . . . . . Cannon . | . . . . . . . . . . Launcher . | . . . . . . . . . . Special . | . . . . . . . . . . Kinetic . | . . . . . . . . . . Thermal . | . . . . . . . . . . Explosive . | . . . . . . . . . . Electromagnetic . | . . . . . . . . . . Robot Hit Streak . | . . . . . . . . . . Robot Miss Streak . | . . . . . . . . . . Penetration Max . | . . . . . . . . . . Secondary Targets . | . . . . . . . . . . Shots Hit Robots 19 | . . . . 2 7 4 1 5 . Core Hits 10 | . . . . 1 2 . . 7 . Critical Hits 1 | . . . . . . 1 . . . Critical Kills . | . . . . . . . . . . Critical Parts Destroyed 1 | . . . . . . 1 . . . Melee Attacks 46 | . 5 . 1 3 8 9 13 7 . Impact . | . . . . . . . . . . Slashing 46 | . 5 . 1 3 8 9 13 7 . Piercing . | . . . . . . . . . . Sneak Attacks 6 | . . . . 1 1 2 1 1 . Combat Hostiles . | . . . . . . . . . . Follow-up Attacks . | . . . . . . . . . . Damage Inflicted 960 | . . . . 105 323 272 67 193 . Guns . | . . . . . . . . . . Cannons . | . . . . . . . . . . Explosions . | . . . . . . . . . . Melee 934 | . . . . 105 323 272 67 167 . Ramming 26 | . . . . . . . . 26 . Kinetic . | . . . . . . . . . . Thermal . | . . . . . . . . . . Explosive . | . . . . . . . . . . Electromagnetic . | . . . . . . . . . . Impact . | . . . . . . . . . . Slashing 934 | . . . . 105 323 272 67 167 . Piercing . | . . . . . . . . . . Highest Corruption 12 | . . . . . . 3 12 3 3 Average Corruption 5 | . . . . . . 2 12 3 3 Corruption Purged . | . . . . . . . . . . Effects 8 | . . . . . . 2 5 . 1 Message Errors 1 | . . . . . . . 1 . . Matter Fused 1 | . . . . . . . 1 . . Heat Flow Errors 2 | . . . . . . 2 . . . Energy Discharges 1 | . . . . . . . . . 1 Alerts 2 | . . . . . . . 2 . . Misdirections 1 | . . . . . . . 1 . . Overload Shots . | . . . . . . . . . . Overflow Damage 187 | . . . . 44 45 31 37 30 . Projectiles . | . . . . . . . . . . Explosions . | . . . . . . . . . . Melee 187 | . . . . 44 45 31 37 30 . Knockbacks . | . . . . . . . . . . Impact . | . . . . . . . . . . Kinetic . | . . . . . . . . . . Secondary . | . . . . . . . . . . Self-Inflicted Damage 11 | . . . . . . . . 11 . Shots . | . . . . . . . . . . Rammed 7 | . . . . . . . . 7 . Targets Rammed 7 | . . . . . . . . 7 . Kicked . | . . . . . . . . . . Crushed . | . . . . . . . . . . Highest Temperature 201 | . . . . . . 201 . . . Average Temperature 104 | . . . . . . 104 . . . Received Heat Transfer 474 | . 6 . 75 63 . 45 90 165 30 Siege Activations . | . . . . . . . . . . Robots Corrupted . | . . . . . . . . . . Combat Hostiles . | . . . . . . . . . . Parts Fried . | . . . . . . . . . . Impact Corruptions . | . . . . . . . . . . Robots Melted . | . . . . . . . . . . Combat Hostiles . | . . . . . . . . . . Parts Melted . | . . . . . . . . . . Heat Transferred . | . . . . . . . . . . Parts Sabotaged . | . . . . . . . . . . Parts Stolen . | . . . . . . . . . . Parts Stripped . | . . . . . . . . . . Power Chain Reactions . | . . . . . . . . . . Missiles Intercepted . | . . . . . . . . . . Alert | -11 -10 -10 -9 -8 -7 -6 -5 -4 -4 ------- Run | Scr Mat Min Mat Mat Fac Fac Fac Fac Arm Peak Influence 283 | . . . 60 100 157 215 271 202 283 Initial 132 | . . . . 25 45 76 105 132 98 Average 104 | . . . 16 36 94 104 176 132 142 Maximum Alert Level 1 | . . . . . . 1 1 1 1 Low Security (%) 90 | 100 100 100 100 100 100 88 71 99 82 Level 1 9 | . . . . . . 11 28 . 17 Level 2 . | . . . . . . . . . . Level 3 . | . . . . . . . . . . Level 4 . | . . . . . . . . . . Level 5 . | . . . . . . . . . . High Security . | . . . . . . . . . . Max Security . | . . . . . . . . . . Squads Dispatched 4 | . . . . . . 1 1 . 2 Investigation . | . . . . . . . . . . Extermination . | . . . . . . . . . . Reinforcement 4 | . . . . . . 1 1 . 2 Assault . | . . . . . . . . . . Garrison . | . . . . . . . . . . Intercept . | . . . . . . . . . . Construction Impeded . | . . . . . . . . . . Haulers Reinforced . | . . . . . . . . . . Stealth | -11 -10 -10 -9 -8 -7 -6 -5 -4 -4 --------- Run | Scr Mat Min Mat Mat Fac Fac Fac Fac Arm Distress Signals 7 | . . . . . . . . 2 5 Communications Jammed . | . . . . . . . . . . Distress Signals . | . . . . . . . . . . Times Spotted 116 | . 5 . 13 13 4 12 12 24 33 Peak Tracking Total 32 | . 5 . 10 11 3 7 9 18 32 Tactical Retreats 15 | . . . 1 1 2 2 4 2 3 Traps | -11 -10 -10 -9 -8 -7 -6 -5 -4 -4 ------- Run | Scr Mat Min Mat Mat Fac Fac Fac Fac Arm Traps Triggered 5 | . 1 . . . . 3 . 1 . Indirectly . | . . . . . . . . . . Trap Hack Attempts . | . . . . . . . . . . Triggered . | . . . . . . . . . . Disarmed . | . . . . . . . . . . Reprogrammed . | . . . . . . . . . . Reused . | . . . . . . . . . . Traps Extracted . | . . . . . . . . . . Installed . | . . . . . . . . . . Triggered . | . . . . . . . . . . Machines | -11 -10 -10 -9 -8 -7 -6 -5 -4 -4 ---------- Run | Scr Mat Min Mat Mat Fac Fac Fac Fac Arm Machines Disabled . | . . . . . . . . . . Max in Single Turn . | . . . . . . . . . . Machines Sabotaged . | . . . . . . . . . . Garrisons Compromised . | . . . . . . . . . . Overloaded Fab Kills . | . . . . . . . . . . Fab Network Shutdowns . | . . . . . . . . . . Hacking | -11 -10 -10 -9 -8 -7 -6 -5 -4 -4 --------- Run | Scr Mat Min Mat Mat Fac Fac Fac Fac Arm Machines Accessed 10 | . 1 . 1 2 2 . 1 1 2 Terminals 10 | . 1 . 1 2 2 . 1 1 2 Fabricators . | . . . . . . . . . . Repair Stations . | . . . . . . . . . . Recycling Units . | . . . . . . . . . . Scanalyzers . | . . . . . . . . . . Garrison Access . | . . . . . . . . . . Total Hacks 24 | . 2 . 2 5 6 . 2 1 6 Successful 8 | . . . 1 3 4 . . . . Failed 15 | . 2 . 1 2 1 . 2 1 6 Catastrophic 2 | . 1 . . . . . . 1 . Database Lockouts 1 | . . . . . 1 . . . . Manual 12 | . 2 . 2 4 4 . . . . Terminals 24 | . 2 . 2 5 6 . 2 1 6 Fabricators . | . . . . . . . . . . Repair Stations . | . . . . . . . . . . Recycling Units . | . . . . . . . . . . Scanalyzers . | . . . . . . . . . . Garrison Access . | . . . . . . . . . . Terminal Hacks 8 | . . . 1 3 4 . . . . Robot Analysis 4 | . . . . 2 2 . . . . Level Access Points 1 | . . . . . 1 . . . . Emergency Access Points 3 | . . . 1 1 1 . . . . Fabricator Hacks . | . . . . . . . . . . Repair Station Hacks . | . . . . . . . . . . Recycling Unit Hacks . | . . . . . . . . . . Scanalyzer . | . . . . . . . . . . Garrison Access Hacks . | . . . . . . . . . . Unauthorized Hacks . | . . . . . . . . . . Terminals . | . . . . . . . . . . Fabricators . | . . . . . . . . . . Repair Stations . | . . . . . . . . . . Recycling Units . | . . . . . . . . . . Scanalyzers . | . . . . . . . . . . Garrison Access . | . . . . . . . . . . Data Cores Recovered 1 | . . . . . 1 . . . . Used 1 | . . . . . 1 . . . . Hacking Detections 9 | . 1 . 1 2 1 . 1 1 2 Full Trace Events . | . . . . . . . . . . Feedback Events . | . . . . . . . . . . Feedback Blocked . | . . . . . . . . . . Robot Schematics Acquired . | . . . . . . . . . . Robots Built . | . . . . . . . . . . Matter . | . . . . . . . . . . Time . | . . . . . . . . . . Total Robot Build Rating . | . . . . . . . . . . Part Schematics Acquired . | . . . . . . . . . . Parts Built . | . . . . . . . . . . Matter . | . . . . . . . . . . Time . | . . . . . . . . . . Total Part Build Rating . | . . . . . . . . . . Parts Repaired . | . . . . . . . . . . Time . | . . . . . . . . . . Parts Recycled . | . . . . . . . . . . Recycled Matter . | . . . . . . . . . . Retrieved Matter . | . . . . . . . . . . Retrieved Components . | . . . . . . . . . . Parts Scanalyzed . | . . . . . . . . . . Part Schematics Acquired . | . . . . . . . . . . Parts Damaged . | . . . . . . . . . . Bothacking | -11 -10 -10 -9 -8 -7 -6 -5 -4 -4 ------------ Run | Scr Mat Min Mat Mat Fac Fac Fac Fac Arm Used RIF Installer . | . . . . . . . . . . Robots Hacked . | . . . . . . . . . . Non-combat . | . . . . . . . . . . Combat . | . . . . . . . . . . Robot Hacks Applied . | . . . . . . . . . . Relay Couplers Released . | . . . . . . . . . . Robots Rewired . | . . . . . . . . . . Allies Hacked . | . . . . . . . . . . Hacks Repelled . | . . . . . . . . . . Allies | -11 -10 -10 -9 -8 -7 -6 -5 -4 -4 -------- Run | Scr Mat Min Mat Mat Fac Fac Fac Fac Arm Total Allies . | . . . . . . . . . . Largest Group . | . . . . . . . . . . Highest-Rated Group . | . . . . . . . . . . Highest-Rated Ally . | . . . . . . . . . . Total Orders . | . . . . . . . . . . Ally Attacks . | . . . . . . . . . . Total Damage . | . . . . . . . . . . Kills . | . . . . . . . . . . Allies Corrupted . | . . . . . . . . . . Allies Melted . | . . . . . . . . . . Intel | -11 -10 -10 -9 -8 -7 -6 -5 -4 -4 ------- Run | Scr Mat Min Mat Mat Fac Fac Fac Fac Arm Robot Analysis Total 4 | . . . . 2 2 . . . . Derelict Logs Recovered 1 | . . 1 . . . . . . . Drone Launches . | . . . . . . . . . . Drone Recoveries . | . . . . . . . . . . Exploration | -11 -10 -10 -9 -8 -7 -6 -5 -4 -4 ------------- Run | Scr Mat Min Mat Mat Fac Fac Fac Fac Arm Turns Passed 1015 | 11 61 46 51 75 115 171 177 162 146 Spaces Moved 1789 | 18 87 92 96 131 255 271 285 268 286 Core 1019 | 18 87 92 96 4 . 3 165 268 286 Treads . | . . . . . . . . . . Legs . | . . . . . . . . . . Wheels . | . . . . . . . . . . Hover 1 | . . . . . . 1 . . . Flight 769 | . . . . 127 255 267 120 . . Fastest Speed 34 | 50 50 50 50 34 34 34 34 50 50 Average Speed 44 | 50 50 50 50 36 34 39 46 50 50 Slowest Speed 250 | 50 50 50 50 50 34 250 200 50 50 Overloaded Moves . | . . . . . . . . . . Propulsion Burnouts . | . . . . . . . . . . Robots Hopped . | . . . . . . . . . . Cave-ins Triggered 1 | . . . . . . . 1 . . Exploration Rate (%) 19 | 3 22 45 16 19 12 15 14 13 31 Regions Visited 9 Branch Regions 2 Pre-discovered Areas . | . . . . . . . . . . Known Exits Taken 1 | . . . . . 1 . . . . Unknown Exits Taken 8 | 1 1 1 1 1 . 1 1 1 . Scrap Searched 1 | . . 1 . . . . . . . Spaces Dug 21 | . 4 . 1 1 . 4 11 . . Terrain Destroyed 21 | . 4 . 1 1 . 4 11 . . Melee 21 | . 4 . 1 1 . 4 11 . . Projectile . | . . . . . . . . . . AOE . | . . . . . . . . . . Terrain Rammed . | . . . . . . . . . . Walls Destroyed . | . . . . . . . . . . Machines Disabled . | . . . . . . . . . . Actions | -11 -10 -10 -9 -8 -7 -6 -5 -4 -4 --------- Run | Scr Mat Min Mat Mat Fac Fac Fac Fac Arm Total 1915 | 18 93 91 96 148 270 321 309 281 288 Wait . | . . . . . . . . . . Move 1779 | 17 86 91 95 130 254 270 283 267 286 Hop . | . . . . . . . . . . Pick Up 9 | . 1 . . 4 1 . 3 . . Fast Attach 15 | 1 1 . . 8 3 . 1 . 1 Attach 9 | . . . . 2 2 1 3 . 1 Detach 5 | . . . . 1 1 1 2 . . Swap . | . . . . . . . . . . Drop 5 | . . . . . 1 1 3 . . Fire . | . . . . . . . . . . Melee 46 | . 5 . 1 3 8 9 13 7 . Ram 7 | . . . . . . . . 7 . Kick . | . . . . . . . . . . Crush . | . . . . . . . . . . Escape Stasis 40 | . . . . . . 39 1 . . Rewire . | . . . . . . . . . . Trap . | . . . . . . . . . . Miscellaneous . | . . . . . . . . . . Route ------- -11/Scrapyard -10/Materials -10/Mines -9/Materials -8/Materials -7/Factory (discovered 5 exits: *Fac x4 / Sto) -6/Factory -5/Factory -4/Factory (discovered 2 exits: [*Res] / *Arm) -4/Armory History --------- Turn | Location | Event 2 | -11/Scrapyard | Discovered new exit (range 16) 12 | -11/Scrapyard | Entered Materials 68 | -10/Materials | Discovered new exit (range 6) 73 | -10/Materials | Entered Mines 82 | -10/Mines | Received a Rocket Launcher from a helpful Derelict 115 | -10/Mines | Discovered new exit (range 9) 119 | -10/Mines | Entered Materials 119 | -9/Materials | Evolved 2 slots: Propulsion x1, Utility x1 168 | -9/Materials | Discovered new exit (range 4) 170 | -9/Materials | Entered another Materials area 170 | -8/Materials | Evolved 2 slots: Utility x2 235 | -8/Materials | Discovered new exit (range 16) 245 | -8/Materials | Entered Factory 245 | -7/Factory | Evolved 2 slots: Propulsion x1, Utility x1 246 | -7/Factory | Identified exit to Storage 313 | -7/Factory | Identified exit to Factory 333 | -7/Factory | Central database locked down 360 | -7/Factory | Entered another Factory area 360 | -6/Factory | Evolved 2 slots: Utility x2 477 | -6/Factory | Lost 3 parts (1p2n) 523 | -6/Factory | Discovered new exit (range 12) 531 | -6/Factory | Entered another Factory area 531 | -5/Factory | Evolved 2 slots: Power x1, Propulsion x1 579 | -5/Factory | Crushed by falling debris 580 | -5/Factory | System corruption reached 10% 610 | -5/Factory | Lost 3 parts (2n1w) 620 | -5/Factory | Build established: Hacker-Mutant 670 | -5/Factory | Lost 5 parts (1n3u1w) 695 | -5/Factory | Core integrity fell below 50% 705 | -5/Factory | Discovered new exit (range 8) 708 | -5/Factory | Entered another Factory area 708 | -4/Factory | Evolved 2 slots: Utility x2 808 | -4/Factory | Discovered new exit (range 5) 852 | -4/Factory | Core integrity fell below 50% 866 | -4/Factory | Discovered new exit (range 9) 870 | -4/Factory | Entered Armory 906 | -4/Armory | Spotted B-86 Titan 947 | -4/Armory | Build established: Mutant 988 | -4/Armory | Core integrity fell below 20% 1016 | -4/Armory | Destroyed by H-77 Assassin with Coil Gun Last Messages --------------- 00905_ O-24 Administrator locks terminal. 00907_ Acquired Centrium Wheel. 00962_ Penetrated by Slug. 00973_ Connecting with Terminal... 00981_ C-30 ARC bursts open, deploying its payload. 00981_ S-27 Virus unfolds itself. 00981_ Imp. Light Armor Plating destroyed. 00997_ I-47 Archangel sends out distress signal. [Achievement: Hunted] 00998_ W-44 Eye sends out distress signal. 01000_ Slug penetrates Wall. 01003_ Penetrated by Slug. 01003_ Slug penetrates Wall. 01004_ W-44 Eye sends out distress signal. 01011_ System corrupted: Energy discharge (-39). 01013_ Penetrated by Slug. 01013_ Slug penetrates Wall. 01014_ ALERT: Hostiles spotted, dispatching reinforcements to Terminal A005. 01016_ Penetrated by Slug. Map ----- +----------------------------------------------------+ | ???????????????????????????????????????????????### | | ?????????????????????????????????????????????????? | | ???????????????????????????????????????????????#?? | | ???????????????????????????????????????????????# " | | ???????????????????????????????????????????????# | | ???????????????????????????????????????????????# | | ???????????????????????????????????????????????# | | ?????????????????????????????????????????????????? | | ???????????????????????????????????????????????# | | ???????????????????????????????????????????????# | | ???????????????????????????????????????????????# | | ???????????????????????????????????????????????# | | ???????????????????????????????????????????????### | | ?????????????????????????????????????????????????? | | ?????????????????????????????????????????????????? | | ?????????????????????????????????????????????????? | | ?????????????????????????????????????????????????? | | ?????????????????????????????????????????????????? | | ?????????????????????????????????????????????????? | | ?????????????????????????????????????????????????? | | ???????????????????????????????#########?????????? | | ?????????????#?????????????????# #?????????? | | ?????????????# ############### #?????????? | | ?????????????# h #?????????? | | ?????????????# h +?????????? | | ?????????????# @ #?????????? | | ?????????????# #######s## #?????????? | | ?????????????# ??????? # #?????????? | | ?????????????# ?????????" " ### ###?????????? | | ??????????????????????????" ? #?# ##########??? | | ??????????????????????????" ? #?# / | | ??????????????????????????" ? #?# ##?????? | | ?????????????????????????? ? #?# """" #??????? | | ?????????????????????????#/##?##?# ""F" #??????? | | ????????????????????????? ???????# "" ######## | | ????????????????????????? ???????+ | | ???????????????????????? ????????# | | ???????????????????????? ????????+ | | ???????????????????????#?????????###########"##### | | ?????????????????????????????????????????? ??? | | ????????????????????????????????????????? ? | | ???????????????????????????????????????? # | | ??????????????????????????????????????? # | | ?????????????????????????????????????? # | | ?????????????????????????????????????############# | | | | | | | | | | | +----------------------------------------------------+ Best States ------------- Heat Dissipation 43 Energy Generation 14 Energy Capacity 140 Matter Stores 300 Matter Capacity 300 Sight Range 16 Terrain Scan Density 60 ECM Strength 1 Armor Coverage 300 Evasion (%) 63 Offensive Hacking 20 Defensive Hacking 10 Item Schematics ----------------- None Robot Schematics ------------------ None Fabricated ------------ Nothing Alien Tech Used ----------------- None Achievements -------------- Hunted Challenges ------------ None Game ------ Seed SeismicCannonProtection Manual? 0 Play Time 00:43:39 Cumulative 68.4 hours Start 2021.12.19 @ 19:57:48 End 2021.12.19 @ 20:42:07 Sessions 1 Manual Loads 0 Difficulty Rogue Special Mode None Game No. 9 Rogue 9 Adventurer 0 Explorer 0 Win Type - Total 0 Types 0/0/0/0/0/0/0/0/0 Lore% 32 Gallery% 41 Achievement% 35 Wizard Run 0 Options --------- ASCII 0 Keyboard 0 Movement Mouse Keybinds 0 Fullscreen 1 Font 18/Terminus Map View 76x50 Tactical HUD 1 Map Filters NONE Filters NONE Steam 1 RUN: 24ca6e2c-954b-43b5-8ac6-4a9f7d846fbd